bitfinex/quotes_BTCUSD_20250115
["timestamp","ask_amount","ask_price","bid_price","bid_amount"]
[1736954627525,0.201444,99283.0,99281.0,0.00428975]
[1736954627734,0.02192994,99285.0,99281.0,0.00428975]
[1736954627943,0.201421,99295.0,99281.0,0.00428975]
[1736954628191,0.10422692,99294.0,99281.0,0.00428975]
[1736954628426,0.00736,99294.0,99282.0,0.00428975]
[1736954628634,0.00736,99296.0,99282.0,0.00428975]
[1736954628840,0.02173086,99296.0,99283.0,0.201444]
[1736954629052,0.001,99285.0,99283.0,0.201444]
[1736954629266,0.001,99285.0,99282.0,0.00428975]
[1736954629481,0.001,99285.0,99280.0,0.00135349]
[1736954629482,0.023,99295.0,99280.0,0.00135349]
[1736954629752,0.01577012,99302.0,99280.0,0.00135349]
[1736954629972,0.001,99296.0,99289.0,0.201431]
[1736954630178,0.001,99296.0,99282.0,0.201446]
[1736954630382,0.00736,99301.0,99281.0,0.0817]
[1736954630518,0.002,99295.0,99281.0,0.0817]
[1736954630730,0.002,99295.0,99283.0,0.201444]
[1736954630926,0.023,99294.0,99281.0,0.0817]
[1736954631333,0.023,99294.0,99289.0,0.003]
[1736954631628,0.001,99295.0,99283.0,0.201444]
[1736954631800,0.001,99295.0,99281.0,0.0817]
[1736954632015,0.00736,99301.0,99281.0,0.0817]
[1736954632244,0.12848576,99300.0,99281.0,0.0817]
[1736954632845,0.12848576,99300.0,99281.0,0.283148]
[1736954633056,0.12848576,99300.0,99283.0,0.003]
[1736954633263,0.201411,99299.0,99281.0,0.0817]
[1736954633498,0.00179844,99302.0,99281.0,0.0817]
[1736954633885,0.001,99300.0,99281.0,0.0817]
[1736954634097,0.001,99300.0,99283.0,0.201444]
[1736954634289,0.001,99300.0,99285.0,0.0479]
[1736954634435,0.001,99300.0,99297.0,0.201415]
[1736954634647,0.001,99300.0,99293.0,0.201422]
[1736954634847,0.001,99300.0,99298.0,1.5]
[1736954635042,0.00179844,99302.0,99298.0,1.5]
[1736954635255,0.30563492,99301.0,99281.0,0.0817]
[1736954635467,0.00279844,99302.0,99282.0,0.10422692]
[1736954635664,0.00279844,99302.0,99298.0,0.201413]
[1736954635887,0.00179844,99302.0,99299.0,1.5]
[1736954636307,0.00179844,99302.0,99300.0,0.201409]
[1736954636506,0.00179844,99302.0,99299.0,1.5]
[1736954636910,0.00179865,99300.0,99299.0,1.5]
[1736954637247,0.00179865,99300.0,99299.0,1.503]
[1736954637431,0.00179865,99300.0,99299.0,1.5]
[1736954637808,0.00179865,99300.0,99299.0,1.506]
[1736954638002,0.00179865,99300.0,99299.0,1.5]
[1736954638660,0.00179865,99300.0,99299.0,1.502]
[1736954639227,0.00179865,99300.0,99299.0,1.5]
[1736954639445,0.00179865,99300.0,99299.0,1.509]
[1736954639831,0.00179865,99300.0,99299.0,1.502]
[1736954640025,0.01584939,99300.0,99299.0,1.502]
[1736954640226,0.00179865,99300.0,99299.0,1.502]
[1736954641146,0.00179865,99300.0,99299.0,1.7337]
[1736954641348,0.00179865,99300.0,99299.0,2.06755892]
[1736954641548,0.00179865,99300.0,99299.0,2.03589792]
[1736954641757,0.00179865,99300.0,99299.0,2.00657092]
[1736954641954,0.00179865,99300.0,99299.0,2.10657092]
[1736954642154,0.00179865,99300.0,99299.0,1.88582692]
[1736954642451,0.00179865,99300.0,99299.0,1.98980592]
[1736954642617,0.05568265,99300.0,99299.0,1.88382692]
[1736954642962,0.05568265,99300.0,99299.0,1.89768115]
[1736954643176,0.00179844,99302.0,99300.0,0.351409]
[1736954643382,0.0471,99369.0,99327.0,0.0817]
[1736954643586,0.0811,99377.0,99343.0,0.201322]
[1736954643825,0.0811,99391.0,99343.0,2.97158593]
[1736954644051,4.4e-07,99344.0,99343.0,3.69814893]
[1736954644265,0.20300018,99402.0,99379.0,0.201249]
[1736954644479,0.00179718,99402.0,99379.0,0.201249]
[1736954644902,0.00194674,99380.0,99379.0,1.80547592]
[1736954645493,0.00194674,99380.0,99379.0,1.95547592]
[1736954645743,0.00194674,99380.0,99379.0,1.851249]
[1736954646401,0.00194674,99380.0,99379.0,1.503]
[1736954646595,0.00194674,99380.0,99379.0,1.512]
[1736954647015,0.00194674,99380.0,99379.0,1.503]
[1736954647191,0.00194674,99380.0,99379.0,0.003]
[1736954647424,0.00194674,99380.0,99363.0,0.402562]
[1736954647657,0.00194674,99380.0,99348.0,1.01603701]
[1736954647658,0.201271,99369.0,99336.0,0.0805]
[1736954647866,0.201271,99369.0,99340.0,0.10422692]
[1736954648071,0.402542,99369.0,99348.0,0.201311]
[1736954648289,0.12848489,99368.0,99341.0,1.5]
[1736954648497,0.12848489,99368.0,99320.0,0.201367]
[1736954648498,0.201305,99352.0,99319.0,0.0805]
[1736954648705,0.201296,99356.0,99328.0,0.01337628]
[1736954648892,0.2013,99354.0,99334.0,0.20134]
[1736954649104,0.10422692,99353.0,99334.0,0.20134]
[1736954649310,0.201304,99352.0,99334.0,0.20134]
[1736954649513,0.10422692,99352.0,99339.0,0.20133]
[1736954649928,0.023,99350.0,99325.0,0.201358]
[1736954650132,0.10422692,99349.0,99319.0,0.0805]
[1736954650337,0.10422692,99349.0,99336.0,0.201335]
[1736954650539,0.10422692,99349.0,99334.0,0.20134]
[1736954650540,0.10422692,99349.0,99334.0,0.001]
[1736954650753,0.20257027,99348.0,99334.0,0.007]
[1736954650954,0.201314,99347.0,99334.0,0.007]
[1736954651159,0.023,99336.0,99334.0,0.001]
[1736954651363,0.10422692,99335.0,99334.0,0.001]
[1736954651570,0.00014968,99347.0,99345.0,0.201317]
[1736954652579,0.00014968,99347.0,99346.0,0.10422692]
[1736954652755,0.00014968,99347.0,99346.0,0.25422692]
[1736954653163,0.00014968,99347.0,99346.0,0.10422692]
[1736954653365,0.00014968,99347.0,99346.0,1.75422692]
[1736954653730,0.00014968,99347.0,99346.0,2.91479792]
[1736954653945,0.008,99349.0,99346.0,2.91479792]
[1736954653946,0.008,99349.0,99348.0,0.35]
[1736954654150,0.00179698,99380.0,99351.0,0.2]
[1736954654351,0.00194699,99380.0,99362.0,0.201283]
[1736954654557,0.00194699,99380.0,99379.0,1.5]
[1736954656825,0.00194699,99380.0,99379.0,1.504]
[1736954657690,0.00194699,99380.0,99379.0,1.5]
[1736954658362,0.00194699,99380.0,99379.0,1.501]
[1736954658806,0.00194699,99380.0,99379.0,0.001]
[1736954659246,0.00194699,99380.0,99379.0,1.503]
[1736954659446,0.00194699,99380.0,99379.0,1.5]
[1736954659653,0.00194699,99380.0,99379.0,1.502]
[1736954660171,0.00194699,99380.0,99379.0,1.5]
[1736954660405,0.25617391,99380.0,99379.0,0.004]
[1736954660623,0.25617391,99380.0,99379.0,0.001]
[1736954661142,0.45742091,99380.0,99379.0,0.005]
[1736954661368,0.45742091,99380.0,99379.0,0.006]
[1736954662347,0.45742091,99380.0,99379.0,0.001]
[1736954662599,0.45742091,99380.0,99368.0,1.5]
[1736954662600,0.00194699,99380.0,99374.0,0.201259]
[1736954662806,0.00194699,99380.0,99379.0,0.001]
[1736954663585,0.00194699,99380.0,99379.0,1.5]
[1736954664563,0.00194699,99380.0,99379.0,1.505]
[1736954664963,0.00194699,99380.0,99379.0,1.506]
[1736954665795,0.00194699,99380.0,99379.0,1.501]
[1736954666030,0.00194699,99380.0,99379.0,1.506]
[1736954666241,0.00194699,99380.0,99379.0,1.505]
[1736954666446,0.00194699,99380.0,99379.0,1.502]
[1736954666647,9.9e-07,99380.0,99379.0,2.05923328]
[1736954666854,0.0017974,99400.0,99397.0,0.402426]
[1736954667063,0.0017974,99400.0,99399.0,0.201209]
[1736954667223,0.0017974,99400.0,99399.0,0.30543592]
[1736954667431,0.0017974,99400.0,99399.0,2.29723592]
[1736954667658,0.0017974,99400.0,99399.0,2.72595592]
[1736954669570,0.0017974,99400.0,99399.0,2.72695592]
[1736954669978,0.0017974,99400.0,99399.0,2.74073937]
[1736954670177,0.0057974,99400.0,99399.0,2.50404837]
[1736954670476,0.0057974,99400.0,99399.0,2.39495737]
[1736954670674,0.0057974,99400.0,99399.0,2.49495737]
[1736954671074,0.0057974,99400.0,99399.0,2.39495737]
[1736954671276,0.0057974,99400.0,99399.0,2.49495737]
[1736954671809,4e-07,99400.0,99399.0,2.49495737]
[1736954672010,0.00179634,99422.0,99411.0,0.1]
[1736954672212,0.00229657,99422.0,99421.0,0.201164]
[1736954672413,0.00229657,99422.0,99421.0,0.40539092]
[1736954672954,0.00229657,99422.0,99421.0,1.90539092]
[1736954673336,0.00229657,99422.0,99421.0,2.92142793]
[1736954673884,5.7e-07,99422.0,99421.0,3.55141682]
[1736954674092,5.7e-07,99422.0,99421.0,3.81880482]
[1736954674280,5.7e-07,99422.0,99421.0,3.82380482]
[1736954674427,0.0017974,99436.0,99435.0,0.551136]
[1736954674635,0.00194734,99436.0,99435.0,2.26883793]
[1736954674834,0.00194734,99436.0,99435.0,2.21835293]
[1736954675040,0.00194734,99436.0,99435.0,3.67705493]
[1736954675299,0.00194734,99436.0,99435.0,3.50676993]
[1736954675509,0.00736,99473.0,99440.0,0.1]
[1736954675708,0.00014986,99472.0,99458.0,0.201088]
[1736954675851,0.00014986,99472.0,99459.0,0.0010053]
[1736954676581,0.00014986,99472.0,99459.0,0.2020923]
[1736954676790,0.00014986,99472.0,99459.0,0.0010053]
[1736954676966,0.00014986,99472.0,99460.0,0.0010053]
[1736954677585,0.00014986,99472.0,99459.0,0.004]
[1736954677586,0.02314986,99472.0,99459.0,0.004]
[1736954677792,0.023,99470.0,99459.0,0.004]
[1736954677986,0.224067,99470.0,99459.0,0.003]
[1736954678260,0.173,99468.0,99460.0,0.001]
[1736954678478,0.201081,99462.0,99460.0,0.001]
[1736954678685,0.27822954,99461.0,99460.0,0.001]
[1736954678860,0.27722692,99461.0,99460.0,0.001]
[1736954679300,0.40152692,99461.0,99460.0,0.001]
[1736954679504,0.57517,99460.0,99459.0,0.003]
[1736954679655,0.173,99459.0,99428.0,0.0010056]
[1736954679866,0.023,99448.0,99428.0,0.0010056]
[1736954680081,0.023,99448.0,99429.0,0.201148]
[1736954680417,0.023,99451.0,99431.0,0.201144]
[1736954680630,0.00736,99447.0,99432.0,0.00100553]
[1736954680835,0.023,99449.0,99442.0,0.20112]
[1736954681036,0.023,99449.0,99443.0,0.00100553]
[1736954681214,0.023,99449.0,99441.0,0.00100549]
[1736954682006,0.023,99449.0,99438.0,0.0010055]
[1736954682209,0.023,99449.0,99433.0,0.20114]
[1736954685612,0.0008556,99449.0,99448.0,1.50100535]
[1736954685790,0.0008556,99449.0,99448.0,1.5]
[1736954686451,0.0008556,99449.0,99448.0,1.61709863]
[1736954686632,0.0008556,99449.0,99448.0,1.72409863]
[1736954686834,0.0008556,99449.0,99448.0,1.72609863]
[1736954687045,0.0008556,99449.0,99448.0,1.71909863]
[1736954687261,0.0008556,99449.0,99448.0,1.72609863]
[1736954687645,0.0038556,99449.0,99448.0,1.72609863]
[1736954688098,0.0038556,99449.0,99448.0,1.62609863]
[1736954688976,0.0008556,99449.0,99448.0,1.62609863]
[1736954689126,0.0018556,99449.0,99448.0,1.61809863]
[1736954689348,0.0018556,99449.0,99448.0,1.61909863]
[1736954689548,0.0018556,99449.0,99448.0,1.61809863]
[1736954689763,0.0008556,99449.0,99448.0,1.61709863]
[1736954689975,0.0008556,99449.0,99448.0,1.63109863]
[1736954690431,0.0008556,99449.0,99448.0,1.61709863]
[1736954690613,0.0008556,99449.0,99448.0,1.61809863]
[1736954690809,0.0018556,99449.0,99448.0,1.61909863]
[1736954691006,0.0018556,99449.0,99448.0,1.61809863]
[1736954692218,0.0008556,99449.0,99448.0,1.61709863]
[1736954692354,0.0008556,99449.0,99448.0,1.51287171]
[1736954692556,0.0028556,99449.0,99448.0,1.5]
[1736954692789,0.0258556,99449.0,99448.0,1.5]
[1736954692989,0.0238556,99449.0,99448.0,1.509]
[1736954693195,0.0238556,99449.0,99448.0,1.514]
[1736954693396,0.0008556,99449.0,99448.0,1.505]
[1736954693796,0.0008556,99449.0,99448.0,1.509]
[1736954694034,0.0008556,99449.0,99448.0,1.501]
[1736954694467,0.0008556,99449.0,99448.0,1.506]
[1736954695204,0.0008556,99449.0,99448.0,1.505]
[1736954695652,0.0008556,99449.0,99448.0,1.508]
[1736954695856,0.0008556,99449.0,99448.0,1.503]
[1736954696065,0.0008556,99449.0,99448.0,1.509]
[1736954696408,0.0008556,99449.0,99448.0,1.503]
[1736954696754,0.0008556,99449.0,99448.0,1.511]
[1736954696953,0.0008556,99449.0,99448.0,1.5]
[1736954697355,0.0008556,99449.0,99448.0,1.505]
[1736954697773,0.32919052,99449.0,99448.0,1.505]
[1736954698232,0.0238556,99449.0,99448.0,1.505]
[1736954698377,0.0238556,99449.0,99448.0,1.506]
[1736954701884,0.0008549,99477.0,99448.0,1.61022692]
[1736954702101,0.00100479,99477.0,99461.0,0.201083]
[1736954702311,0.00100479,99477.0,99463.0,0.201079]
[1736954702523,0.00100479,99477.0,99476.0,1.49974522]
[1736954703988,0.00100479,99477.0,99476.0,1.50474522]
[1736954704408,0.00100479,99477.0,99476.0,1.49974522]
[1736954704845,0.00100479,99477.0,99476.0,1.50874522]
[1736954705466,0.12823171,99477.0,99476.0,0.009]
[1736954705834,0.32928271,99477.0,99476.0,0.012]
[1736954706044,0.61208271,99477.0,99476.0,0.012]
[1736954706372,0.201099,99454.0,99449.0,1.5]
[1736954706587,0.201102,99452.0,99449.0,1.5]
[1736954706788,0.023,99453.0,99449.0,1.5]
[1736954707190,0.201076,99465.0,99450.0,0.00100554]
[1736954707416,0.201076,99465.0,99451.0,0.00100538]
[1736954707721,0.023,99452.0,99449.0,1.5]
[1736954707940,0.023,99450.0,99449.0,1.509]
[1736954708159,0.023,99450.0,99449.0,1.5]
[1736954708768,0.12722692,99450.0,99449.0,1.503]
[1736954709172,0.2894867,99450.0,99448.0,0.00179508]
[1736954709383,0.47933754,99449.0,99448.0,0.00179508]
[1736954709587,0.66145476,99449.0,99448.0,0.00179508]
[1736954709789,0.61113492,99449.0,99448.0,0.00179508]
[1736954710156,0.1,99437.0,99403.0,0.10508014]
[1736954710347,0.201168,99420.0,99404.0,0.02880929]
[1736954710563,0.201174,99416.0,99415.0,1.5]
[1736954710849,0.12722692,99416.0,99415.0,0.02880929]
[1736954710996,0.224176,99415.0,99399.0,0.00179676]
[1736954711199,0.023,99408.0,99402.0,0.02880969]
[1736954711379,0.023,99413.0,99403.0,0.001]
[1736954711614,0.023,99407.0,99404.0,0.02880969]
[1736954711783,0.173,99405.0,99404.0,0.02880969]
[1736954712004,0.27722692,99405.0,99404.0,0.02880969]
[1736954712211,0.27722692,99405.0,99403.0,0.00050023]
[1736954712412,0.47942854,99404.0,99403.0,0.00050023]
[1736954712612,0.47842592,99404.0,99403.0,0.00050023]
[1736954713236,0.48578592,99404.0,99403.0,0.00050023]
[1736954713931,0.48878592,99404.0,99403.0,0.00050023]
[1736954714169,0.55748401,99404.0,99403.0,0.00050023]
[1736954714545,0.48878592,99404.0,99403.0,0.02926356]
[1736954714747,0.58878592,99404.0,99403.0,0.00050023]
[1736954714948,0.35,99400.0,99341.0,0.0782]
[1736954715157,0.023,99364.0,99341.0,0.0782]
[1736954715360,0.023,99363.0,99362.0,0.48157469]
[1736954715567,0.12722692,99363.0,99362.0,0.51033283]
[1736954715957,0.12722692,99363.0,99362.0,0.02875814]
[1736954716165,0.023,99362.0,99349.0,0.02875814]
[1736954716371,0.15,99371.0,99363.0,0.003]
[1736954716581,0.00736,99380.0,99364.0,0.23005081]
[1736954716784,0.15,99393.0,99365.0,0.02977711]
[1736954716990,0.15,99389.0,99374.0,1.5]
[1736954717203,0.023,99386.0,99375.0,0.02877081]
[1736954717357,0.00736,99392.0,99375.0,0.02877081]
[1736954717561,0.10396415,99391.0,99375.0,0.02877081]
[1736954717985,0.2012,99404.0,99376.0,0.20226119]
[1736954718192,0.2012,99404.0,99377.0,0.02877081]
[1736954718193,0.00736,99393.0,99377.0,0.02877081]
[1736954718388,0.11158692,99393.0,99377.0,0.02877081]
[1736954718591,0.01250107,99404.0,99377.0,0.02877081]
[1736954718767,0.00736,99404.0,99393.0,0.201221]
[1736954718969,0.00736,99404.0,99394.0,0.02877081]
[1736954719171,0.00736,99404.0,99395.0,0.001006]
[1736954719392,0.201158,99425.0,99395.0,0.001006]
[1736954719393,0.00736,99419.0,99397.0,0.201213]
[1736954719714,0.20116,99424.0,99397.0,0.201213]
[1736954719715,0.00736,99421.0,99398.0,0.02977669]
[1736954719926,0.10422692,99421.0,99399.0,0.02877081]
[1736954720126,0.023,99420.0,99400.0,0.00100588]
[1736954720261,0.023,99420.0,99401.0,0.02877081]
[1736954720473,0.15,99420.0,99402.0,0.00100588]
[1736954720686,0.001,99404.0,99402.0,0.00100588]
[1736954720897,0.001,99404.0,99395.0,0.00179508]
[1736954721102,0.20117,99418.0,99396.0,0.02868828]
[1736954721315,0.023,99415.0,99400.0,0.002]
[1736954721532,0.023,99413.0,99401.0,0.22989228]
[1736954721739,0.21364287,99430.0,99402.0,0.02968609]
[1736954721959,0.023,99419.0,99403.0,0.02868014]
[1736954722161,0.023,99419.0,99404.0,0.201199]
[1736954722375,0.023,99419.0,99405.0,0.02868014]
[1736954723061,0.15,99429.0,99406.0,0.00100589]
[1736954723402,0.00736,99431.0,99408.0,0.201191]
[1736954723604,0.00736,99431.0,99410.0,0.201187]
[1736954723812,0.00736,99431.0,99412.0,0.201182]
[1736954724018,0.00736,99441.0,99417.0,0.201171]
[1736954724163,0.00100262,99446.0,99419.0,0.201168]
[1736954724453,0.00100262,99446.0,99420.0,0.00100568]
[1736954724633,0.0824,99456.0,99420.0,0.00100568]
[1736954724802,0.00736,99447.0,99420.0,0.02966986]
[1736954725156,0.00100262,99451.0,99420.0,0.00100568]
[1736954725337,0.00736,99447.0,99420.0,0.00100568]
[1736954725700,0.00736,99447.0,99420.0,0.1874326]
[1736954725904,0.00736,99447.0,99420.0,0.21611853]
[1736954726101,0.00736,99447.0,99420.0,0.21111285]
[1736954726302,0.00100262,99446.0,99420.0,0.11088593]
[1736954726505,0.15,99447.0,99420.0,0.11189159]
[1736954726707,0.00100262,99446.0,99420.0,0.11189159]
[1736954726932,0.15,99442.0,99420.0,0.03268593]
[1736954727103,0.1,99448.0,99420.0,0.004]
[1736954727308,0.023,99426.0,99420.0,0.004]
[1736954727508,0.201153,99427.0,99420.0,0.004]
[1736954727509,0.023,99422.0,99420.0,0.004]
[1736954727711,0.02349952,99421.0,99420.0,0.004]
[1736954728132,0.02449952,99421.0,99420.0,0.008]
[1736954728358,0.00049952,99421.0,99409.0,0.00100585]
[1736954728738,0.00049952,99421.0,99420.0,0.007]
[1736954729163,0.00049952,99421.0,99420.0,0.004]
[1736954729565,0.00049952,99421.0,99413.0,0.201179]
[1736954729763,0.00049952,99421.0,99414.0,0.02870435]
[1736954729982,0.00049952,99421.0,99420.0,0.001]
[1736954730127,0.00049952,99421.0,99420.0,0.02970435]
[1736954730343,0.00149952,99421.0,99420.0,0.02970435]
[1736954730578,0.00149952,99421.0,99420.0,0.001]
[1736954731420,0.00149952,99421.0,99417.0,0.20217675]
[1736954731628,0.00049952,99421.0,99418.0,0.10792363]
[1736954731794,0.00049952,99421.0,99419.0,0.02871788]
[1736954731977,0.00049952,99421.0,99420.0,0.00100566]
[1736954732180,0.00049952,99421.0,99420.0,0.02871788]
[1736954732378,0.00049952,99421.0,99409.0,0.201189]
[1736954732573,0.00049952,99421.0,99417.0,0.005]
[1736954732813,0.00049952,99421.0,99417.0,0.001]
[1736954733039,0.023,99420.0,99418.0,0.02871297]
[1736954733211,0.023,99420.0,99401.0,0.201205]
[1736954733388,0.201172,99417.0,99402.0,0.02872357]
[1736954733606,0.023,99416.0,99403.0,0.02872357]
[1736954733812,0.023,99416.0,99404.0,0.02872357]
[1736954734033,0.023,99416.0,99405.0,0.02872357]
[1736954734237,0.023,99416.0,99395.0,0.20301208]
[1736954734238,0.023,99414.0,99406.0,0.02872357]
[1736954734475,0.023,99416.0,99407.0,0.02872357]
[1736954734688,0.023,99416.0,99408.0,0.02872357]
[1736954734901,0.023,99416.0,99401.0,0.02872357]
[1736954735134,0.023,99414.0,99402.0,0.00472357]
[1736954735348,0.173,99404.0,99396.0,0.00472357]
[1736954735551,0.00736,99427.0,99395.0,0.00179508]
[1736954735764,0.00736,99427.0,99407.0,0.001]
[1736954735991,0.023,99420.0,99408.0,0.20119]
[1736954736202,0.023,99420.0,99406.0,0.201194]
[1736954736412,0.10422692,99419.0,99401.0,0.00200584]
[1736954736622,0.023,99418.0,99401.0,0.201203]
[1736954736877,0.224174,99416.0,99402.0,1.5]
[1736954737089,0.12722692,99415.0,99402.0,1.5]
[1736954737269,0.023,99410.0,99402.0,1.5]
[1736954737711,0.023,99414.0,99402.0,1.5]
[1736954737912,0.023,99412.0,99395.0,0.00679508]
[1736954738043,0.023,99410.0,99395.0,0.00679508]
[1736954738268,0.224193,99407.0,99406.0,0.001]
[1736954738471,0.15,99404.0,99395.0,0.00679508]
[1736954738651,0.374203,99402.0,99395.0,0.00179508]
[1736954738855,0.023,99400.0,99395.0,0.00179508]
[1736954739052,0.351203,99402.0,99395.0,0.00179508]
[1736954739053,0.023,99398.0,99395.0,0.00179508]
[1736954739294,0.023,99396.0,99395.0,0.00179508]
[1736954739711,0.023,99396.0,99395.0,0.00279508]
[1736954740040,0.023,99396.0,99395.0,0.00179508]
[1736954740197,0.023,99396.0,99395.0,0.00379508]
[1736954740608,0.023,99396.0,99395.0,0.00179508]
[1736954741705,0.01175813,99408.0,99395.0,0.00179508]
[1736954741706,0.0824,99431.0,99400.0,0.201205]
[1736954741867,0.023,99408.0,99396.0,0.201215]
[1736954742072,0.10422692,99420.0,99398.0,0.17500092]
[1736954742279,0.00732,99419.0,99401.0,1.5]
[1736954742487,0.00235764,99421.0,99401.0,1.5]
[1736954742488,0.023,99416.0,99401.0,1.5]
[1736954742692,0.00135502,99421.0,99402.0,0.00100594]
[1736954742900,0.00435502,99421.0,99410.0,0.201185]
[1736954743098,0.00435502,99421.0,99407.0,0.20219886]
[1736954743303,0.00435502,99421.0,99411.0,0.201183]
[1736954743707,0.023,99420.0,99407.0,0.00100586]
[1736954743953,0.00435502,99421.0,99409.0,0.201189]
[1736954744151,0.00135502,99421.0,99410.0,0.00100584]
[1736954744379,0.00135502,99421.0,99418.0,0.20117]
[1736954744533,0.00135502,99421.0,99420.0,1.5]
[1736954745716,0.02435502,99421.0,99420.0,1.5]
[1736954746552,0.00135502,99421.0,99420.0,1.61222692]
[1736954746749,0.00135502,99421.0,99420.0,1.508]
[1736954746750,0.00235502,99421.0,99420.0,1.508]
[1736954747304,0.00135502,99421.0,99420.0,1.5]
[1736954747504,0.00135502,99421.0,99420.0,1.505]
[1736954747905,0.00135502,99421.0,99420.0,1.5]
[1736954748300,0.00135502,99421.0,99420.0,1.51603472]
[1736954748557,0.00135502,99421.0,99420.0,1.69986164]
[1736954748802,0.00135502,99421.0,99420.0,1.69586164]
[1736954749047,0.00235502,99421.0,99420.0,1.70286164]
[1736954749294,0.00135502,99421.0,99420.0,1.69986164]
[1736954749708,0.00235502,99421.0,99420.0,1.70786164]
[1736954749925,0.00235502,99421.0,99420.0,1.85616164]
[1736954750633,0.00135502,99421.0,99420.0,0.58701364]
[1736954750881,0.00235502,99421.0,99420.0,0.49501364]
[1736954751140,0.00235502,99421.0,99420.0,0.49101364]
[1736954751384,0.00235502,99421.0,99420.0,0.47760689]
[1736954751642,0.00235502,99421.0,99420.0,1.58622797]
[1736954751851,0.00235502,99421.0,99420.0,1.58222797]
[1736954752329,0.00135502,99421.0,99420.0,1.57822797]
[1736954752576,0.00235502,99421.0,99420.0,1.58622797]
[1736954752819,0.00235502,99421.0,99420.0,0.008]
[1736954753075,0.00235502,99421.0,99420.0,0.004]
[1736954753076,0.00135502,99421.0,99420.0,0.004]
[1736954753348,0.00235502,99421.0,99420.0,0.012]
[1736954754111,0.00135502,99421.0,99420.0,0.004]
[1736954754358,0.00135502,99421.0,99416.0,0.1417]
[1736954754610,0.00135502,99421.0,99420.0,0.004]
[1736954755093,0.00135502,99421.0,99418.0,1.5]
[1736954755349,0.00135502,99421.0,99419.0,0.201168]
[1736954755594,0.00135502,99421.0,99420.0,0.00300573]
[1736954755829,0.02535502,99421.0,99420.0,0.31634973]
[1736954756069,0.02535502,99421.0,99420.0,1.5]
[1736954756070,0.02435502,99421.0,99420.0,1.5]
[1736954756345,0.02435502,99421.0,99420.0,1.620338]
[1736954756588,0.02535502,99421.0,99420.0,1.627338]
[1736954756809,0.02535502,99421.0,99420.0,1.620338]
[1736954757041,0.02635502,99421.0,99420.0,1.508]
[1736954759027,0.02435502,99421.0,99420.0,1.506]
[1736954759273,0.02535502,99421.0,99420.0,0.014]
[1736954759824,0.02535502,99421.0,99420.0,0.0090057]
[1736954760042,0.023,99420.0,99419.0,0.201168]
[1736954760319,0.02435502,99421.0,99419.0,1.5]
[1736954760320,0.00135502,99421.0,99419.0,1.5]
[1736954760574,0.00235502,99421.0,99420.0,0.00900574]
[1736954760848,0.00135502,99421.0,99419.0,1.701167]
[1736954761084,0.00135502,99421.0,99420.0,0.005]
[1736954761353,0.25558194,99421.0,99420.0,0.005]
[1736954761619,0.023,99419.0,99397.0,0.201211]
[1736954761871,0.201176,99415.0,99398.0,1.50100591]
[1736954762124,0.023,99413.0,99398.0,1.5]
[1736954762303,0.023,99411.0,99398.0,1.5]
[1736954762536,0.023,99409.0,99391.0,0.00179655]
[1736954762808,0.2207,99407.0,99406.0,0.00479634]
[1736954763086,0.32492692,99407.0,99385.0,0.03075034]
[1736954763362,0.023,99404.0,99364.0,0.201279]
[1736954763575,0.023,99386.0,99366.0,0.201276]
[1736954763812,0.023,99384.0,99366.0,0.201276]
[1736954764044,0.12722692,99384.0,99366.0,0.201276]
[1736954764280,0.12722692,99384.0,99366.0,0.00100627]
[1736954764512,0.12722692,99384.0,99371.0,0.201264]
[1736954764748,0.12722692,99384.0,99367.0,1.5]
[1736954764979,0.12722692,99384.0,99368.0,0.201272]
[1736954765242,0.12722692,99384.0,99367.0,1.50014994]
[1736954765436,0.12722692,99384.0,99368.0,0.201272]
[1736954765919,0.001,99386.0,99369.0,0.38869019]
[1736954766148,0.001,99386.0,99382.0,0.402484]
[1736954766355,0.00732,99402.0,99369.0,0.10523319]
[1736954766356,0.201206,99401.0,99379.0,0.201248]
[1736954766563,0.201206,99401.0,99369.0,0.10422692]
[1736954766564,0.001,99384.0,99383.0,0.00100608]
[1736954766785,0.001,99384.0,99383.0,0.201239]
[1736954767000,0.023,99401.0,99383.0,0.20224508]
[1736954767244,0.001,99386.0,99384.0,0.00100608]
[1736954767454,0.001,99386.0,99371.0,0.07930595]
[1736954767673,0.201216,99396.0,99373.0,0.201261]
[1736954767891,0.023,99393.0,99368.0,0.002]
[1736954768129,0.20124,99384.0,99367.0,0.00014994]
[1736954768337,0.023,99381.0,99367.0,0.00014994]
[1736954768596,0.12722692,99381.0,99367.0,0.00014994]
[1736954768807,0.023,99380.0,99367.0,0.20142294]
[1736954769022,0.023,99380.0,99367.0,0.00014994]
[1736954769239,0.201241,99383.0,99367.0,0.00014994]
[1736954769453,0.023,99381.0,99367.0,0.00014994]
[1736954769637,0.001,99393.0,99367.0,0.00014994]
[1736954769787,0.001,99381.0,99377.0,0.201253]
[1736954770015,0.001,99393.0,99378.0,0.00100613]
[1736954770402,0.001,99380.0,99378.0,0.00100613]
[1736954770758,0.001,99380.0,99379.0,0.38377592]
[1736954770968,0.023,99407.0,99394.0,0.201218]
[1736954771379,0.00732,99411.0,99394.0,0.201218]
[1736954771578,0.10422692,99410.0,99394.0,0.201218]
[1736954771781,0.30541392,99410.0,99391.0,0.001006]
[1736954771936,0.023,99409.0,99395.0,1.5]
[1736954772357,0.00732,99415.0,99395.0,1.5]
[1736954772557,0.208488,99419.0,99397.0,0.201213]
[1736954772741,0.201172,99417.0,99396.0,0.00100592]
[1736954772941,0.023,99410.0,99395.0,1.5]
[1736954773165,0.023,99407.0,99395.0,1.501]
[1736954773372,0.023,99405.0,99395.0,0.001]
[1736954773604,0.023,99395.0,99372.0,0.201262]
[1736954773824,0.201223,99392.0,99366.0,0.0783]
[1736954774029,0.12722692,99391.0,99373.0,1.5]
[1736954774290,0.12722692,99391.0,99372.0,0.201263]